fUSD/lending_fUSD_20240907
["ID","MTS","AMOUNT","RATE_DAILY","PERIOD"]
[337495861,1725707453258,-587.79,0.00014794,2]
[337495862,1725707453267,-688.26,0.00014794,2]
[337495863,1725707453276,-587.79,0.00014794,2]
[337495864,1725707453285,-587.79,0.00014794,2]
[337495865,1725707453295,-587.79,0.00014794,2]
[337495866,1725707453304,-587.79,0.00014794,2]
[337495867,1725707453314,-587.79,0.00014794,2]
[337495868,1725707453324,-587.79,0.00014794,2]
[337495869,1725707453333,-587.79,0.00014794,2]
[337495870,1725707453342,-587.83147585,0.00014794,2]
[337495871,1725707453352,-151.0,0.00014794,2]
[337495872,1725707453361,-688.26,0.00014794,2]
[337495873,1725707453371,-688.26,0.00014794,2]
[337495874,1725707453380,-151.0,0.00014794,2]
[337495875,1725707453389,-688.26,0.00014794,2]
[337495876,1725707453401,-151.0,0.00014794,2]
[337495877,1725707453410,-688.26,0.00014794,2]
[337495878,1725707453420,-254.363308,0.00014794,2]
[337495879,1725707453429,-688.26,0.00014794,2]
[337495880,1725707453438,-688.26,0.00014794,2]
[337495881,1725707453448,-688.26,0.00014794,2]
[337495882,1725707453458,-688.26,0.00014794,2]
[337495883,1725707453467,-688.26,0.00014794,2]
[337495884,1725707453476,-688.26,0.00014794,2]
[337495885,1725707453486,-688.26,0.00014794,2]
[337495886,1725707453495,-688.34667914,0.00014794,2]
[337495887,1725707453504,-603.72,0.00014794,2]
[337495888,1725707453515,-603.72,0.00014794,2]
[337495889,1725707453524,-603.72,0.00014794,2]
[337495890,1725707453534,-603.72,0.00014794,2]
[337495891,1725707453543,-603.72,0.00014794,2]
[337495892,1725707453553,-603.72,0.00014794,2]
[337495893,1725707453562,-603.72,0.00014794,2]
[337495894,1725707453571,-603.72,0.00014794,2]
[337495895,1725707453580,-603.72,0.00014794,2]
[337495896,1725707453589,-603.72,0.00014794,2]
[337495897,1725707453599,-603.72,0.00014794,2]
[337495898,1725707453608,-603.72,0.00014794,2]
[337495899,1725707453617,-603.72,0.00014794,2]
[337495900,1725707453626,-603.72,0.00014794,2]
[337495901,1725707453636,-603.72,0.00014794,2]
[337495902,1725707453645,-603.72,0.00014794,2]
[337495903,1725707453654,-603.72,0.00014794,2]
[337495904,1725707453663,-603.72,0.00014794,2]
[337495905,1725707453672,-603.72,0.00014794,2]
[337495906,1725707453682,-603.72,0.00014794,2]
[337495907,1725707453691,-603.72,0.00014794,2]
[337495908,1725707453700,-603.72,0.00014794,2]
[337495909,1725707453710,-603.72,0.00014794,2]
[337495910,1725707453720,-603.87510462,0.00014794,2]
[337495911,1725707453730,-397.299698,0.00014794,2]
[337495912,1725707453739,-397.299698,0.00014794,2]
[337495913,1725707453748,-524.86,0.00014794,2]
[337495914,1725707453758,-397.299698,0.00014794,2]
[337495915,1725707453767,-524.86,0.00014794,2]
[337495916,1725707453777,-397.299698,0.00014794,2]
[337495917,1725707453787,-524.86,0.00014794,2]
[337495918,1725707453797,-524.86,0.00014794,2]
[337495919,1725707453807,-397.299698,0.00014794,2]
[337495920,1725707453817,-524.86,0.00014794,2]
[337495921,1725707453826,-397.299698,0.00014794,2]
[337495922,1725707453836,-524.86,0.00014794,2]
[337495923,1725707453845,-524.86,0.00014794,2]
[337495924,1725707453855,-524.86,0.00014794,2]
[337495925,1725707453864,-524.86,0.00014794,2]
[337495926,1725707453874,-524.86,0.00014794,2]
[337495927,1725707453884,-524.86,0.00014794,2]
[337495928,1725707453893,-524.86,0.00014794,2]
[337495929,1725707453907,-524.86,0.00014794,2]
[337495930,1725707453915,-524.86,0.00014794,2]
[337495931,1725707453925,-397.299698,0.00014794,2]
[337495932,1725707453935,-524.86,0.00014794,2]
[337495933,1725707453945,-397.299698,0.00014794,2]
[337495934,1725707453955,-524.86,0.00014794,2]
[337495935,1725707453964,-397.299698,0.00014794,2]
[337495936,1725707453973,-524.86,0.00014794,2]
[337495937,1725707453982,-397.299698,0.00014794,2]
[337495938,1725707453992,-524.86,0.00014794,2]
[337495939,1725707454001,-524.86,0.00014794,2]
[337495940,1725707454010,-397.299698,0.00014794,2]
[337495941,1725707454019,-524.86,0.00014794,2]
[337495942,1725707454028,-397.299691,0.00014794,2]
[337495943,1725707454038,-524.86,0.00014794,2]
[337495944,1725707454046,-524.86,0.00014794,2]
[337495945,1725707454056,-524.86,0.00014794,2]
[337495946,1725707454064,-525.03519906,0.00014794,2]
[337495947,1725707454074,-568.1,0.00014794,2]
[337495948,1725707454083,-568.1,0.00014794,2]
[337495949,1725707454096,-568.1,0.00014794,2]
[337495950,1725707454105,-500.0,0.00014794,2]
[337495951,1725707454114,-568.1,0.00014794,2]
[337495952,1725707454126,-500.0,0.00014794,2]
[337495953,1725707454136,-568.1,0.00014794,2]
[337495954,1725707454145,-500.0,0.00014794,2]
[337495955,1725707454156,-568.1,0.00014794,2]
[337495956,1725707454166,-500.0,0.00014794,2]
[337495957,1725707454176,-500.0,0.00014794,2]
[337495958,1725707454186,-568.1,0.00014794,2]
[337495959,1725707454196,-350.56669313,0.00014794,2]
[337495960,1725707454206,-568.1,0.00014794,2]
[337495961,1725707454216,-568.1,0.00014794,2]
[337495962,1725707454226,-568.1,0.00014794,2]
[337495963,1725707454236,-568.1,0.00014794,2]
[337495964,1725707454245,-568.1,0.00014794,2]
[337495965,1725707454254,-1818.77,0.00014794,2]
[337495966,1725707454263,-568.1,0.00014794,2]
[337495967,1725707454272,-1818.77,0.00014794,2]
[337495968,1725707454281,-568.1,0.00014794,2]
[337495969,1725707454290,-1818.77,0.00014794,2]
[337495970,1725707454299,-568.1,0.00014794,2]
[337495971,1725707454308,-1818.77,0.00014794,2]
[337495972,1725707454318,-568.1,0.00014794,2]
[337495973,1725707454326,-1818.77,0.00014794,2]
[337495974,1725707454335,-568.1,0.00014794,2]
[337495975,1725707454344,-1818.77,0.00014794,2]
[337495976,1725707454354,-568.1,0.00014794,2]
[337495977,1725707454363,-1818.77,0.00014794,2]
[337495978,1725707454372,-568.1,0.00014794,2]
[337495979,1725707454381,-1818.77,0.00014794,2]
[337495980,1725707454390,-568.1,0.00014794,2]
[337495981,1725707454404,-568.1,0.00014794,2]
[337495982,1725707454414,-1818.77,0.00014794,2]
[337495983,1725707454423,-568.1,0.00014794,2]
[337495984,1725707454432,-1818.77,0.00014794,2]
[337495985,1725707454442,-568.1,0.00014794,2]
[337495986,1725707454452,-1818.77,0.00014794,2]
[337495987,1725707454461,-568.10313008,0.00014794,2]
[337495988,1725707454470,-1818.77,0.00014794,2]
[337495989,1725707454480,-1818.77,0.00014794,2]
[337495990,1725707454489,-1818.77,0.00014794,2]
[337495991,1725707454498,-1818.77,0.00014794,2]
[337495992,1725707454508,-1818.77,0.00014794,2]
[337495993,1725707454517,-1818.77,0.00014794,2]
[337495994,1725707454527,-1818.77,0.00014794,2]
[337495995,1725707454537,-500.0,0.00014794,2]
[337495996,1725707454547,-1818.77,0.00014794,2]
[337495997,1725707454556,-500.0,0.00014794,2]
[337495998,1725707454566,-1818.77,0.00014794,2]
[337495999,1725707454576,-1818.77,0.00014794,2]
[337496000,1725707454585,-1818.77,0.00014794,2]
[337496001,1725707454594,-500.0,0.00014794,2]
[337496002,1725707454603,-1818.77,0.00014794,2]
[337496003,1725707454612,-500.0,0.00014794,2]
[337496004,1725707454621,-1818.83806107,0.00014794,2]
[337496005,1725707454631,-500.0,0.00014794,2]
[337496006,1725707454640,-255.74969581,0.00014794,2]
[337496007,1725707454651,-515.41,0.00014794,2]
[337496008,1725707454660,-515.41,0.00014794,2]
[337496009,1725707454669,-515.41,0.00014794,2]
[337496010,1725707454678,-515.41,0.00014794,2]
[337496011,1725707454687,-515.41,0.00014794,2]
[337496012,1725707454696,-515.41,0.00014794,2]
[337496013,1725707454706,-515.41,0.00014794,2]
[337496014,1725707454715,-515.41,0.00014794,2]
[337496015,1725707454726,-515.41,0.00014794,2]
[337496016,1725707454735,-515.41,0.00014794,2]
[337496017,1725707454744,-515.41,0.00014794,2]
[337496018,1725707454754,-515.41,0.00014794,2]
[337496019,1725707454763,-515.41,0.00014794,2]
[337496020,1725707454772,-515.41,0.00014794,2]
[337496021,1725707454781,-515.41,0.00014794,2]
[337496022,1725707454790,-515.41,0.00014794,2]
[337496023,1725707454799,-515.41,0.00014794,2]
[337496024,1725707454809,-515.41,0.00014794,2]
[337496025,1725707454818,-515.41,0.00014794,2]
[337496026,1725707454827,-515.41,0.00014794,2]
[337496027,1725707454836,-515.41,0.00014794,2]
[337496028,1725707454845,-196.5,0.00014846,2]
[337496029,1725707454856,-189.96,0.00014874,2]
[337496030,1725707454866,-795.0,0.00014888,2]
[337496031,1725707454875,-569.2942,0.00014899,2]
[337496032,1725707454885,-1000.0,0.000149,2]
[337496033,1725707454894,-1000.0,0.000149,2]
[337496034,1725707454905,-276.51373317,0.000149,2]
[337496035,1725707454914,-1000.0,0.000149,2]
[337496036,1725707454924,-1000.0,0.000149,2]
[337496037,1725707454933,-1000.0,0.000149,2]
[337496038,1725707454943,-1000.0,0.000149,2]
[337496039,1725707454952,-1000.0,0.000149,2]
[337496040,1725707454961,-1000.0,0.000149,2]
[337496041,1725707454971,-1000.0,0.000149,2]
[337496042,1725707454981,-1000.0,0.000149,2]
[337496043,1725707454990,-964.28018899,0.000149,2]
[337496044,1725707454999,-5149.63760959,0.000149,2]
[337496045,1725707455008,-1000.0,0.000149,2]
[337496046,1725707455018,-1000.0,0.00014908,2]
[337496047,1725707455027,-161.03,0.00014957,2]
[337496048,1725707455037,-150.0,0.00014973,2]
[337496049,1725707455046,-448100.896092,0.00014985,7]
[337496050,1725707455055,-1568528.67058816,0.00014986,2]
[337496051,1725707455064,-1021164.06642582,0.00014986,2]
[337496052,1725707455074,-188.1291238,0.0001499,2]
[337496053,1725707455083,-189.9770455,0.0001499,2]
[337496054,1725707455093,-191.8249673,0.0001499,2]
[337496055,1725707455107,-193.672889,0.0001499,2]
[337496056,1725707455117,-195.5208108,0.0001499,2]
[337496057,1725707455127,-2377.9095504,0.0001499,2]
[337496058,1725707455136,-2368.6426345,0.0001499,2]
[337496059,1725707455146,-2359.3757185,0.0001499,2]
[337496060,1725707455155,-2350.1088025,0.0001499,2]
[337496061,1725707455165,-2340.8418865,0.0001499,2]
[337496062,1725707455175,-16981.9084314,0.0001499,2]
[337496063,1725707455184,-17251.7495515,0.0001499,2]
[337496064,1725707455194,-17521.5906717,0.0001499,2]
[337496065,1725707455203,-17791.4317918,0.0001499,2]
[337496066,1725707455212,-18061.2729119,0.0001499,2]
[337496067,1725707455221,-1057.8498722,0.0001499,2]
[337496068,1725707455230,-1074.6590192,0.0001499,2]
[337496069,1725707455240,-1091.4681662,0.0001499,2]
[337496070,1725707455249,-1108.2773131,0.0001499,2]
[337496071,1725707455258,-1125.0864601,0.0001499,2]
[337496072,1725707455268,-2146.7079736,0.0001499,2]
[337496073,1725707455277,-1842.8762193,0.0001499,2]
[337496074,1725707455286,-1539.044465,0.0001499,2]
[337496075,1725707455295,-1235.2127107,0.0001499,2]
[337496076,1725707455305,-931.3809564,0.0001499,2]
[337496077,1725707455314,-6792.58966758,0.00014999,2]
[337496078,1725707455323,-611009.40514407,0.00015,2]
[337496079,1725707455664,-75189.02143281,0.00015,2]
[337496080,1725707455748,-210.22073952,0.0001274,2]
[337496081,1725707455757,-151.0,0.00013,2]
[337496082,1725707455766,-124.08426048,0.00013177,2]
[337496083,1725707456197,-1309.9999992,0.00013177,2]
[337496084,1725707456208,-6628.33360127,0.00013177,2]
[337496085,1725707456220,-1937.58213905,0.00013177,2]
[337496086,1725707456229,-515.41,0.00014794,2]
[337496087,1725707456239,-515.41,0.00014794,2]
[337496088,1725707456249,-515.62821458,0.00014794,2]
[337496089,1725707456258,-5313.99823994,0.00015,2]
[337496090,1725707456270,-3578.10776028,0.00015,2]
[337496091,1725707456317,-1035.0,0.00013,2]
[337496092,1725707456327,-1102.90186013,0.00015,2]
[337496093,1725707456338,-4705.00726714,0.00015,2]
[337496094,1725707456349,-6139.10364174,0.00015,2]
[337496095,1725707805635,239.51,0.00011167,2]
[337496096,1725708088896,-252.795,0.00012028,2]
[337496097,1725708088918,-500.0,0.00012895,2]
[337496098,1725708088941,-500.0,0.00012904,2]
[337496099,1725708088964,-500.0,0.00012913,2]
[337496100,1725708088989,-500.0,0.00012921,2]
[337496101,1725708089009,-47.205,0.0001293,2]
[337496102,1725708158581,183.2,0.00010959,2]
[337496103,1725708308939,227.53,0.00010916,2]
[337496104,1725708330010,2850.0,0.000101,2]
[337496117,1725708524352,355.25,0.00012001,2]
[337496136,1725708576480,-196.52,0.00012022,2]
[337496137,1725708576511,-12309.55737908,0.00012076,2]
[337496138,1725708576549,-7794.67114784,0.00012076,2]
[337496140,1725708618548,250.0,0.00011992,2]
[337496146,1725708632086,-189.67147308,0.00012076,2]
[337496147,1725708632096,-146.44240171,0.00012129,2]
[337496148,1725708632123,-778.63384695,0.00012129,2]
[337496149,1725708632160,-187.37375134,0.00012129,2]
[337496150,1725708632170,-226.13,0.00012858,2]
[337496151,1725708632180,-500.0,0.0001286,2]
[337496152,1725708632189,-500.0,0.00012869,2]
[337496153,1725708632200,-478.08627475,0.00012877,2]
[337496180,1725708638041,-21.91372525,0.00012877,2]
[337496182,1725708638051,-300.0,0.00012879,2]
[337496183,1725708638060,-150.0,0.00012879,2]
[337496184,1725708638069,-276.66148403,0.0001288,2]
[337496185,1725708638080,-1815.69636537,0.0001288,2]
[337496186,1725708638104,-868.00078551,0.0001288,2]
[337496187,1725708638137,-582.75405,0.0001288,2]
[337496188,1725708638148,-262.14000012,0.0001288,2]
[337496189,1725708638255,-317.52313219,0.0001288,2]
[337496190,1725708638267,-3163.29177813,0.0001288,2]
[337496191,1725708638374,-1775.89,0.0001288,2]
[337496192,1725708638408,-1362.14790047,0.0001288,2]
[337496193,1725708638419,-38592.82688904,0.0001288,2]
[337496194,1725708638441,-1376.58000001,0.0001288,2]
[337496195,1725708638453,-5987.35430173,0.0001288,2]
[337496246,1725708640091,-392.10492854,0.0001288,2]
[337496247,1725708640104,-625.51270936,0.0001288,2]
[337496248,1725708640176,-50.00609832,0.0001288,2]
[337496249,1725708640233,-557.38108761,0.0001288,2]
[337496250,1725708640245,-353.59275053,0.0001288,2]
[337496251,1725708640280,-670.37,0.0001288,2]
[337496252,1725708640416,-4409.69574016,0.0001288,2]
[337496253,1725708640450,-16432.73670334,0.0001288,2]
[337496254,1725708640459,-500.0,0.00012886,2]
[337496255,1725708640468,-3739.19758112,0.000129,2]
[337496256,1725708640476,-499.99,0.000129,2]
[337496257,1725708640485,-328.28053856,0.000129,2]
[337496258,1725708640494,-313.96855655,0.00012901,2]
[337496259,1725708640503,-452.795,0.0001293,2]
[337496260,1725708640512,-500.0,0.00012939,2]
[337496261,1725708640521,-500.0,0.00012948,2]
[337496263,1725708640531,-250.0,0.00012949,2]
[337496265,1725708640540,-500.0,0.00012957,2]
[337496267,1725708640549,-150.99,0.00012957,2]
[337496269,1725708640558,-500.0,0.00012965,2]
[337496271,1725708640567,-1000.0,0.00012971,2]
[337496273,1725708640577,-500.0,0.00012973,2]
[337496275,1725708640586,-500.82231397,0.00012973,2]
[337496276,1725708640594,-500.0,0.00012974,2]
[337496277,1725708640604,-500.0,0.00012983,2]
[337496278,1725708640613,-250.0,0.00012987,2]
[337496279,1725708640622,-500.0,0.00012992,2]
[337496280,1725708640631,-674545.4436924,0.00013,2]
[337496281,1725708640640,-1747168.85795957,0.00013,2]
[337496282,1725708640649,-1896444.93501051,0.00013,2]
[337496283,1725708640660,-1529.43690522,0.00013,2]
[337496285,1725708643627,-441.344958,0.00013,2]
[337496286,1725708643640,-9956.95801704,0.00013,2]
[337496287,1725708643652,-4779.09946627,0.00013,2]
[337496288,1725708643665,-7126.78727835,0.00013,2]
[337496291,1725708646095,-754.85459043,0.00013,2]
[337496294,1725708646337,-979.58180343,0.00013,2]
[337496295,1725708646348,-912.85999773,0.00013,2]
[337496296,1725708646359,-1358.33273909,0.00013,2]
[337496297,1725708646382,-474.421,0.00013,2]
[337496298,1725708786338,234.62,0.00011107,2]
[337496299,1725708821746,-659.819927,0.00012835,2]
[337496300,1725708821767,-1000.0,0.000129,2]
[337496301,1725708821788,-1588.6922,0.000129,2]
[337496303,1725708967722,-659.819927,0.00012735,2]
[337496304,1725708967743,-563.61271786,0.00012799,2]
[337496305,1725708967764,-591.0,0.00012899,2]
[337496306,1725708967785,-3185.56735514,0.000129,2]
[337496307,1725708973477,-4314.43264486,0.000129,2]
[337496308,1725708973498,-685.56735514,0.000129,2]
[337496309,1725708983936,-5000.0,0.000129,2]
[337496310,1725708995046,-2500.0,0.000129,2]
[337496311,1725709013537,750.0,0.00011,2]
[337496312,1725709163891,204.97,0.00010959,2]
[337496313,1725709300288,239.13,0.00011111,2]
[337496314,1725709372060,155.10041363,0.00012,7]
[337496322,1725709702453,159.19,0.00010959,2]
[337496340,1725709783001,227.17,0.00010292,2]
[337496347,1725709832224,-443.54,0.00012118,2]
[337496348,1725709832233,-250.0,0.00012135,2]
[337496349,1725709832242,-283.4,0.00012161,2]
[337496350,1725709832251,-250.0,0.00012166,2]
[337496351,1725709832260,-250.0,0.00012174,2]
[337496352,1725709832269,-227.17,0.00012556,2]
[337496353,1725709832278,-180.97641428,0.0001264,2]
[337496354,1725709832287,-282.41996355,0.00012683,2]
[337496355,1725709832295,-382.798,0.0001274,2]
[337496356,1725709832307,-1099.574,0.0001274,2]
[337496357,1725709832317,-150.0,0.00012877,2]
[337496358,1725709832327,-4034.33714486,0.000129,2]
[337496359,1725709832338,-1471.267,0.000129,2]
[337496360,1725709832348,-1075.1252,0.000129,2]
[337496361,1725709832357,-1000.0,0.000129,2]
[337496362,1725709832368,-1588.6922,0.000129,2]
[337496363,1725709832378,-59003.8786,0.000129,2]
[337496364,1725709832388,-837.24948414,0.000129,2]
[337496365,1725709832398,-221.93364426,0.000129,2]
[337496366,1725709832409,-1617.12,0.000129,2]
[337496367,1725709832419,-352.73051697,0.000129,2]
[337496368,1725709832428,-9368.5975393,0.000129,2]
[337496369,1725709832438,-170.68800696,0.00012901,2]
[337496370,1725709832447,-13540.65,0.00012929,2]
[337496371,1725709832456,-500.26597959,0.00012973,2]
[337496372,1725709832465,-160.93151335,0.00012973,2]
[337496373,1725709832475,-499.99,0.00012973,2]
[337496374,1725709832484,-500.0,0.00012973,2]
[337496375,1725709832493,-500.0,0.00012973,2]
[337496376,1725709832502,-500.0,0.00012973,2]
[337496377,1725709832511,-500.0,0.00012973,2]
[337496378,1725709832521,-1000.0,0.00012986,2]
[337496379,1725709832529,-10672.87,0.0001299,2]
[337496380,1725709832539,-151.19,0.0001299,2]
[337496381,1725709832548,-197.90645454,0.0001299,2]
[337496382,1725709832557,-197.90645454,0.0001299,2]
[337496383,1725709832566,-197.90645454,0.0001299,2]
[337496384,1725709832576,-500.0,0.00012999,2]
[337496385,1725709832585,-422.89402082,0.00012999,2]
[337496386,1725709832594,-152.66223881,0.00012999,2]
[337496387,1725709832603,-8738.70571861,0.00013,2]
[337496388,1725709832615,-11115.5928153,0.00013,2]
[337496389,1725709832625,-268.20032902,0.00013,2]
[337496390,1725709832636,-14245.72823899,0.00013,2]
[337496391,1725709838339,-614.61715512,0.00013,2]
[337496392,1725709838395,-8971.57355868,0.00013,2]
[337496393,1725709838406,-1685.38807429,0.00013,2]
[337496394,1725709838456,-3855.75444095,0.00013,2]
[337496395,1725709838467,-13301.34632884,0.00013,2]
[337496396,1725709838478,-16792.55808578,0.00013,2]
[337496397,1725709838490,-467.14661128,0.00013,2]
[337496398,1725709838501,-15073.07401685,0.00013,2]
[337496411,1725709840232,-4617.91216045,0.00013,2]
[337496412,1725709840288,-3909287.15450588,0.00013,2]
[337496413,1725709840298,-6056.69,0.00013,2]
[337496414,1725709840309,-299.99,0.00013,2]
[337496415,1725709840319,-1139.07049,0.00013,2]
[337496416,1725709840330,-500.0,0.00013001,2]
[337496417,1725709840341,-193.24,0.00013008,2]
[337496418,1725709840351,-500.0,0.00013009,2]
[337496419,1725709840361,-500.0,0.00013014,2]
[337496420,1725709840371,-170.65,0.00013057,2]
[337496421,1725709840381,-173.2,0.00013067,2]
[337496422,1725709840390,-173.2,0.00013133,2]
[337496423,1725709840399,-10000.0,0.00013236,2]
[337496424,1725709840408,-211.49,0.00013457,2]
[337496425,1725709840418,-8500.0,0.00013529,2]
[337496426,1725709840428,-8500.0,0.00013537,2]
[337496427,1725709840438,-8500.0,0.00013537,2]
[337496428,1725709840448,-6394.32474162,0.00013537,2]
[337496429,1725709840460,-1278.86494833,0.00013537,2]
[337496430,1725709840469,-255.77298966,0.00013537,2]
[337496431,1725709840479,-1040.0,0.00013567,2]
[337496432,1725709840489,-283.4,0.00013681,2]
[337496433,1725709840499,-152.92,0.00013699,2]
[337496434,1725709840509,-150.0,0.00013699,2]
[337496435,1725709840519,-359.0,0.000137,2]
[337496436,1725709840529,-1000.0,0.000137,2]
[337496437,1725709840539,-226.0,0.000137,2]
[337496438,1725709840550,-1270.627,0.00013756,2]
[337496439,1725709840559,-638.113,0.00013756,2]
[337496440,1725709840569,-812.82,0.00013756,2]
[337496441,1725709840579,-152.423,0.00013756,2]
[337496442,1725709840589,-564.379,0.00013756,2]
[337496443,1725709840598,-1898.0,0.00013756,2]
[337496444,1725709840608,-807.0,0.00013756,2]
[337496445,1725709840618,-1139.0,0.00013756,2]
[337496446,1725709840627,-250.973,0.00013756,2]
[337496447,1725709840637,-1922.0,0.00013756,2]
[337496448,1725709840647,-3323.0,0.00013756,2]
[337496449,1725709840657,-5414.992,0.00013756,2]
[337496450,1725709840666,-150.0,0.00013756,2]
[337496451,1725709840676,-837.24948413,0.000139,2]
[337496452,1725709840685,-221.93364425,0.000139,2]
[337496453,1725709840695,-9368.5975393,0.000139,2]
[337496454,1725709840704,-500.0,0.00013986,2]
[337496455,1725709840715,-500.0,0.00013986,2]
[337496456,1725709840725,-500.0,0.00013986,2]
[337496457,1725709840734,-500.0,0.00013986,2]
[337496458,1725709840743,-500.0,0.00013986,2]
[337496459,1725709840752,-500.0,0.00013986,2]
[337496460,1725709840762,-500.0,0.00013986,2]
[337496461,1725709840770,-500.0,0.00013986,2]
[337496462,1725709840781,-500.0,0.00013986,2]
[337496463,1725709840790,-500.0,0.00013986,2]
[337496464,1725709840799,-500.0,0.00013986,2]
[337496465,1725709840809,-500.0,0.00013986,2]
[337496466,1725709840819,-500.0,0.00013986,2]
[337496467,1725709840829,-500.0,0.00013986,2]
[337496468,1725709840839,-583.31,0.00013986,2]
[337496469,1725709840850,-1000.0,0.00013986,2]
[337496470,1725709840860,-1000.0,0.00013986,2]
[337496471,1725709840871,-1000.0,0.00013986,2]
[337496472,1725709840882,-1000.0,0.00013986,2]
[337496473,1725709840893,-1000.0,0.00013986,2]
[337496474,1725709840903,-1000.0,0.00013986,2]
[337496475,1725709840914,-1000.0,0.00013986,2]
[337496476,1725709840924,-1000.0,0.00013986,2]
[337496477,1725709840935,-1000.0,0.00013986,2]
[337496478,1725709840945,-1000.0,0.00013986,2]
[337496479,1725709840959,-1000.0,0.00013986,2]
[337496480,1725709840967,-1000.0,0.00013986,2]
[337496481,1725709840976,-1000.0,0.00013986,2]
[337496482,1725709840986,-1000.0,0.00013986,2]
[337496483,1725709840994,-1000.0,0.00013986,2]
[337496484,1725709841003,-677.0,0.00013986,2]
[337496485,1725709841013,-642.25,0.00014,2]
[337496486,1725709841024,-1020.52,0.00014055,2]
[337496487,1725709841035,-422.14,0.00014055,2]
[337496488,1725709841046,-422.14,0.00014055,2]
[337496489,1725709841055,-422.14,0.00014055,2]
[337496490,1725709841066,-420.08,0.00014055,2]
[337496491,1725709841076,-150.0,0.00014059,2]
[337496492,1725709841086,-150.0,0.0001442,2]
[337496493,1725709841096,-150.78,0.00014466,2]
[337496494,1725709841109,-224.134573,0.00014521,2]
[337496495,1725709841118,-1000.0,0.00014609,2]
[337496496,1725709841129,-500.0,0.0001475,2]
[337496497,1725709841139,-500.0,0.00014759,2]
[337496498,1725709841149,-500.0,0.00014768,2]
[337496499,1725709841159,-500.0,0.00014777,2]
[337496500,1725709841170,-150.0,0.0001478,2]
[337496501,1725709841180,-500.0,0.00014786,2]
[337496502,1725709841190,-500.0,0.00014794,2]
[337496503,1725709841200,-500.0,0.00014794,2]
[337496504,1725709841210,-500.0,0.00014794,2]
[337496505,1725709841219,-500.0,0.00014794,2]
[337496506,1725709841228,-377.32,0.00014794,2]
[337496507,1725709841237,-500.0,0.00014794,2]
[337496508,1725709841246,-17422.16916304,0.000148,2]
[337496509,1725709841255,-500.0,0.00014803,2]
[337496510,1725709841264,-500.0,0.00014812,2]
[337496511,1725709841273,-227.17,0.0001482,2]
[337496512,1725709841282,-500.0,0.00014821,2]
[337496513,1725709841291,-500.0,0.0001483,2]
[337496514,1725709841300,-500.0,0.00014838,2]
[337496515,1725709841309,-500.0,0.00014847,2]
[337496516,1725709841318,-500.0,0.00014856,2]
[337496517,1725709841328,-500.0,0.00014865,2]
[337496518,1725709841338,-500.0,0.00014874,2]
[337496519,1725709841347,-500.0,0.00014882,2]
[337496520,1725709841356,-500.0,0.00014891,2]
[337496521,1725709841365,-500.0,0.000149,2]
[337496522,1725709841375,-837.24948413,0.000149,2]
[337496523,1725709841384,-221.93364425,0.000149,2]
[337496524,1725709841393,-9368.5975393,0.000149,2]
[337496525,1725709841402,-500.0,0.00014973,2]
[337496526,1725709841412,-500.0,0.00014973,2]
[337496527,1725709841421,-1785.40713602,0.00014985,5]
[337496528,1725709841430,-506.5245774,0.00014993,2]